bitfinex/quotes_ETHUSD_20251110
["timestamp","ask_amount","ask_price","bid_price","bid_amount"]
[1762812711761,1.746212,3541.7,3541.1,0.012]
[1762812711973,0.60900765,3541.6,3541.1,0.012]
[1762812712188,0.60900765,3541.5,3540.9,2.53226481]
[1762812712488,0.6087673,3541.5,3540.9,2.53226481]
[1762812712784,0.6087673,3541.5,3540.9,2.82413096]
[1762812713356,0.4865,3541.6,3540.9,2.82411931]
[1762812713986,1.0952673,3541.6,3540.9,2.82411931]
[1762812714219,0.4865,3541.6,3540.9,2.82411931]
[1762812714396,0.6083322,3541.8,3540.3,0.1617]
[1762812714565,0.4865,3541.6,3540.6,0.3414]
[1762812714768,1.0948322,3541.6,3540.6,0.3414]
[1762812714999,0.4865,3541.6,3540.6,0.3414]
[1762812715204,0.4865,3541.6,3540.8,2.82416321]
[1762812715372,0.4865,3541.6,3540.9,2.82412484]
[1762812715563,0.4865,3541.6,3540.8,2.82419348]
[1762812716655,0.1971,3541.9,3540.8,0.57624366]
[1762812716873,0.1971,3541.9,3541.5,0.3414]
[1762812717354,0.6942,3541.9,3541.1,0.3414]
[1762812717557,0.6942,3541.9,3541.1,3.1653759]
[1762812718184,0.6942,3541.9,3541.1,2.82796626]
[1762812718399,0.6942,3541.9,3541.1,2.8239759]
[1762812718610,0.6942,3541.9,3541.0,2.82403172]
[1762812718815,0.4971,3541.8,3541.1,2.82397407]
[1762812720217,0.4971,3541.8,3541.0,2.82404075]
[1762812720519,0.4971,3541.8,3540.9,0.002]
[1762812721123,0.4971,3541.8,3540.9,2.82613387]
[1762812721344,0.4971,3541.8,3540.9,2.82611762]
[1762812721498,0.4971,3541.8,3541.0,2.82404542]
[1762812721819,0.4971,3541.8,3541.0,2.82403059]
[1762812722524,0.1971,3541.9,3541.1,0.02823981]
[1762812722830,0.1971,3541.9,3541.3,2.82380122]
[1762812722984,0.001,3542.0,3541.4,3.10606124]
[1762812723181,0.001,3542.0,3541.4,0.28238012]
[1762812723422,0.001,3542.0,3541.2,0.004]
[1762812723583,0.001,3542.0,3541.9,2.8273434]
[1762812723785,0.001,3542.0,3541.9,0.004]
[1762812723991,0.9635,3542.0,3541.3,2.8238144]
[1762812724292,0.001,3542.0,3541.8,2.82337168]
[1762812725023,0.001,3542.0,3541.9,2.85157683]
[1762812725332,0.001,3542.0,3541.9,2.8233434]
[1762812726042,0.001,3542.0,3541.2,2.82383949]
[1762812726216,0.001,3542.0,3541.8,2.82339211]
[1762812726834,0.001,3542.0,3541.7,2.82349194]
[1762812727233,0.001,3542.0,3541.8,2.82339373]
[1762812727432,0.001,3542.0,3541.1,9.01303455]
[1762812727605,0.001,3542.0,3541.3,2.8238203]
[1762812727606,0.6872,3541.9,3541.3,2.8238203]
[1762812727811,0.4971,3541.8,3541.1,10.32395239]
[1762812728117,0.4971,3541.8,3541.1,7.5]
[1762812728118,0.4654,3541.4,3541.1,7.5]
[1762812728294,0.4971,3541.8,3541.1,7.5]
[1762812728295,0.4654,3541.2,3541.1,7.5]
[1762812728494,0.4654,3541.2,3540.7,2.82427151]
[1762812728696,0.4654,3541.2,3540.5,0.002]
[1762812728697,0.02813191,3541.1,3540.5,0.002]
[1762812728918,0.4971,3541.1,3540.5,0.002]
[1762812729629,0.4971,3541.1,3540.5,2.82645902]
[1762812730146,0.4971,3541.4,3540.5,2.82645902]
[1762812730316,0.4971,3541.4,3540.5,2.82439069]
[1762812730515,0.4971,3541.4,3540.6,2.82436016]
[1762812731296,0.4971,3541.4,3540.2,2.82468392]
[1762812731600,0.4971,3541.4,3540.5,2.82445807]
[1762812732319,0.4654,3540.6,3540.3,14.5]
[1762812732702,0.9625,3540.6,3540.3,14.5]
[1762812733037,0.9625,3540.6,3540.2,2.82466966]
[1762812733447,0.9625,3540.6,3540.2,17.32466966]
[1762812733810,0.4971,3540.5,3540.2,2.82466966]
[1762812734225,0.4971,3540.5,3540.3,2.82461629]
[1762812734624,0.1901,3540.7,3540.3,2.82461629]
[1762812734818,0.6872,3540.7,3540.2,2.82467038]
[1762812735019,0.6872,3540.7,3540.0,17.32484985]
[1762812735020,0.6872,3540.7,3540.0,14.5]
[1762812735241,0.6872,3540.7,3540.0,17.32481159]
[1762812735242,0.4971,3540.6,3540.0,17.32481159]
[1762812735822,0.4971,3540.6,3540.0,14.5]
[1762812736026,0.4654,3540.1,3539.8,2.82495466]
[1762812736453,0.1901,3540.7,3539.8,14.5]
[1762812736454,0.4971,3540.4,3539.8,14.5]
[1762812736799,0.4971,3540.1,3539.7,2.82504841]
[1762812737047,0.6872,3540.7,3539.7,14.5]
[1762812737431,0.4971,3540.6,3540.1,2.82671682]
[1762812737754,0.4971,3540.6,3540.1,0.002]
[1762812738057,0.4654,3540.2,3540.1,0.002]
[1762812739021,0.9625,3540.2,3540.1,0.002]
[1762812739663,0.9625,3540.2,3539.8,0.002]
[1762812739847,0.6555,3539.9,3539.8,0.002]
[1762812740166,1.1526,3539.9,3539.8,0.002]
[1762812741234,1.1526,3539.9,3537.9,4.08618942]
[1762812741235,0.405504,3539.1,3538.1,7.51]
[1762812741595,0.4654,3538.2,3538.1,7.51]
[1762812742030,0.9625,3538.2,3538.1,7.51]
[1762812742233,0.9625,3538.2,3538.1,0.01]
[1762812742462,0.9625,3538.2,3537.5,2.82685465]
[1762812742463,0.4971,3538.1,3537.5,2.82681858]
[1762812742645,0.4971,3538.4,3537.8,2.82655998]
[1762812742843,1.259712,3539.5,3537.8,2.82655998]
[1762812742844,0.4971,3539.0,3537.8,2.82658227]
[1762812743034,0.02813191,3539.5,3537.8,2.82660638]
[1762812743035,0.902604,3539.4,3537.8,2.82660638]
[1762812743260,0.37559276,3539.3,3538.0,2.82644769]
[1762812743436,0.4971,3539.3,3537.5,15.19001002]
[1762812743632,0.4971,3539.3,3537.9,2.82645567]
[1762812743835,0.4971,3539.3,3538.1,2.82636708]
[1762812744144,0.4971,3539.3,3538.1,2.8263137]
[1762812744348,0.4971,3539.3,3537.5,15.19001002]
[1762812744571,0.4971,3539.3,3538.1,2.82631228]
[1762812744770,0.4971,3539.3,3538.2,2.82623031]
[1762812744934,0.4971,3539.3,3537.6,1.80169137]
[1762812745871,0.4971,3539.3,3538.7,2.82583553]
[1762812746571,0.4971,3539.3,3538.6,2.82595611]
[1762812746866,0.4971,3539.3,3538.7,2.82588949]
[1762812747071,0.4971,3539.3,3538.8,2.82581167]
[1762812747571,0.4971,3539.3,3538.1,14.78263807]
[1762812748295,0.02813191,3539.2,3538.1,14.5]
[1762812748481,0.4773,3539.1,3537.9,2.67555834]
[1762812748796,0.4773,3539.1,3538.1,2.8263512]
[1762812748998,0.4773,3539.1,3538.2,2.82626693]
[1762812749179,0.4773,3539.1,3538.3,2.82619275]
[1762812749892,0.4773,3539.1,3538.2,2.82628162]
[1762812750091,0.4773,3539.1,3538.3,2.82620118]
[1762812750389,0.4773,3539.1,3538.2,2.8262676]
[1762812750561,0.4773,3539.1,3538.0,2.82645314]
[1762812750760,0.4773,3539.1,3538.3,2.82619955]
[1762812751202,0.4773,3539.1,3537.5,0.69001002]
[1762812751203,0.4712,3538.4,3537.5,0.69001002]
[1762812751491,4.33101368,3539.0,3537.2,7.5]
[1762812751492,0.4712,3538.1,3537.4,2.82686601]
[1762812751895,0.9485,3538.1,3537.5,2.82683043]
[1762812752100,0.9485,3538.1,3537.3,14.5]
[1762812752296,0.9485,3538.1,3537.4,2.82688123]
[1762812752500,0.9485,3538.1,3537.3,14.5]
[1762812752501,0.4773,3538.0,3537.3,14.5]
[1762812752796,0.4773,3538.0,3537.3,17.32696397]
[1762812752968,0.1818,3537.9,3537.3,17.32696397]
[1762812753166,0.1818,3537.9,3537.4,2.82687261]
[1762812753598,0.1818,3537.9,3537.5,2.82685506]
[1762812753804,0.6591,3537.9,3537.5,2.82685506]
[1762812754189,0.4712,3537.6,3537.1,14.51]
[1762812754392,0.4712,3537.6,3537.1,2.83710244]
[1762812754589,0.4712,3537.6,3536.6,0.08711738]
[1762812754590,0.4712,3537.2,3536.6,0.08711738]
[1762812754907,0.4712,3537.2,3536.9,2.82726561]
[1762812755118,0.4712,3537.2,3536.7,14.5]
[1762812755274,0.9485,3537.2,3536.7,14.5]
[1762812755472,0.9485,3537.2,3536.6,0.08711738]
[1762812755473,0.4538,3537.1,3536.6,0.08711738]
[1762812755778,0.4538,3537.1,3536.6,2.91468635]
[1762812756102,0.4618,3536.7,3536.6,14.58711738]
[1762812756309,0.4618,3536.7,3536.6,0.08711738]
[1762812756825,0.9156,3536.7,3536.6,0.08711738]
[1762812759317,0.1932,3537.0,3536.7,2.8274936]
[1762812759472,0.1932,3537.3,3536.6,0.08711738]
[1762812759672,0.1932,3537.3,3536.9,2.82733006]
[1762812759967,0.647,3537.3,3536.9,2.82733006]
[1762812760323,0.1932,3537.3,3537.1,2.8271748]
[1762812760613,0.1932,3537.3,3537.1,2.60419166]
[1762812760820,0.1932,3537.6,3536.6,0.08711738]
[1762812761022,0.1932,3537.6,3536.7,0.29227439]
[1762812761520,0.1818,3537.9,3537.5,2.82685457]
[1762812762081,0.6356,3537.9,3537.5,2.82685457]
[1762812762280,0.6356,3537.9,3536.8,2.82741461]
[1762812762281,0.6356,3537.9,3537.4,2.82692691]
[1762812762906,0.6356,3537.9,3536.8,2.82741461]
[1762812763177,0.6356,3537.9,3537.4,2.82688157]
[1762812763600,0.6356,3537.9,3537.3,2.82699891]
[1762812764882,0.6356,3537.9,3536.9,0.32068064]
[1762812765078,0.6356,3537.9,3537.3,2.82696494]
[1762812765899,0.6356,3537.9,3537.4,2.82693482]
[1762812766476,0.1818,3537.9,3537.6,2.8267345]
[1762812766722,0.1818,3537.9,3537.6,2.53364464]
[1762812767135,0.4538,3538.2,3537.1,3.1419243]
[1762812767136,0.01,3538.9,3537.9,2.8264853]
[1762812767313,0.4538,3538.6,3537.7,2.82666401]
[1762812767624,0.4538,3538.6,3537.7,3.3920311]
[1762812767917,0.4538,3538.6,3537.1,0.31478494]
[1762812768088,0.4538,3538.6,3537.7,2.82663641]
[1762812768296,0.405504,3538.3,3537.0,7.5]
[1762812768494,0.4618,3537.6,3537.0,7.5]
[1762812768715,0.655,3537.1,3537.0,7.5]
[1762812769108,1.1088,3537.1,3537.0,7.5]
[1762812769307,1.1088,3537.1,3536.6,0.08711738]
[1762812769520,0.4538,3537.0,3536.6,0.08711738]
[1762812771850,0.4618,3536.7,3536.6,0.08711738]
[1762812772018,0.4538,3537.0,3536.6,0.08711738]
[1762812772199,0.1932,3537.1,3536.6,0.08711738]
[1762812772619,0.1932,3537.1,3536.4,2.7857287]
[1762812772836,0.1932,3537.1,3536.5,2.82764655]
[1762812773036,0.1932,3537.1,3536.5,2.82760674]
[1762812773559,0.1932,3537.1,3536.4,2.827706]
[1762812774111,0.4538,3537.0,3536.6,0.002]
[1762812775648,0.4902,3536.7,3536.6,0.002]
[1762812775955,0.4538,3537.0,3536.6,0.002]
[1762812776519,0.001,3537.1,3536.6,2.82955826]
[1762812776759,0.001,3537.1,3536.6,0.002]
[1762812776916,0.4838,3537.1,3536.6,0.002]
[1762812777752,0.4973,3536.7,3536.6,0.002]
[1762812778647,0.4973,3536.7,3536.1,0.01]
[1762812778950,0.4973,3536.7,3536.4,2.82767267]
[1762812779315,0.4838,3537.1,3536.4,2.82767267]
[1762812779711,0.4838,3537.1,3536.3,2.82778374]
[1762812780168,0.4838,3537.1,3536.1,3.28981119]
[1762812780169,0.001,3537.1,3536.1,0.46185101]
[1762812780329,0.001,3537.1,3536.4,0.29534528]
[1762812780519,0.4838,3537.1,3536.1,0.01]
[1762812780846,0.4838,3537.1,3535.5,7.5]
[1762812780847,0.4973,3536.2,3535.5,7.5]
[1762812781038,0.4973,3535.9,3535.5,7.5]
[1762812781235,0.60588916,3536.8,3535.6,0.02828374]
[1762812781413,0.4828,3537.0,3536.2,2.82782752]
[1762812781619,0.4828,3537.0,3535.2,0.405504]
[1762812781870,0.4828,3537.0,3536.4,2.82769052]
[1762812782166,0.4828,3537.0,3536.3,2.82781438]
[1762812782316,0.4828,3537.0,3535.8,2.82821383]
[1762812782520,0.001,3537.1,3535.8,2.82821383]
[1762812782521,0.001,3537.1,3536.7,2.82744531]
[1762812782766,0.001,3537.1,3536.6,2.82754755]
[1762812783152,0.001,3537.1,3536.6,0.28275475]
[1762812783362,0.001,3537.1,3535.9,7.5]
[1762812783531,0.001,3537.1,3536.1,2.82797432]
[1762812783731,0.001,3537.1,3536.7,2.82744348]
[1762812783973,0.001,3537.1,3536.8,2.82740261]
[1762812784737,0.001,3537.1,3536.5,2.82759063]
[1762812784938,0.001,3537.1,3536.8,2.82740045]
[1762812785167,0.001,3537.1,3536.6,3.11032649]
[1762812785168,0.001,3537.1,3536.9,2.82727396]
[1762812785380,0.001,3537.1,3537.0,2.82725473]
[1762812787259,0.001,3537.1,3536.9,2.82727396]
[1762812787260,0.001,3537.1,3536.9,2.82728619]
[1762812787464,0.001,3537.1,3537.0,2.82725473]
[1762812788092,0.001,3537.1,3537.0,3.39271507]
[1762812789069,0.001,3537.1,3537.0,2.82725473]
[1762812789970,0.4983,3537.1,3536.8,2.82739146]
[1762812790409,0.9811,3537.1,3536.6,0.28275906]
[1762812790614,0.4828,3537.0,3536.5,2.827582]
[1762812790761,0.4828,3537.0,3536.8,2.82740747]
[1762812790974,0.4973,3536.9,3536.8,2.82740747]
[1762812791195,0.001,3537.1,3536.8,2.82740747]
[1762812791423,0.001,3537.1,3536.9,4.54592183]
[1762812791623,0.001,3537.1,3536.2,0.405504]
[1762812791624,0.001,3537.1,3537.0,3.28184691]
[1762812791819,0.001,3537.1,3536.4,2.8277341]
[1762812792111,0.4973,3536.8,3536.4,2.8276919]
[1762812792279,0.4973,3536.8,3536.6,0.002]
[1762812792465,0.4973,3536.8,3536.6,2.82956321]
[1762812792666,0.4973,3536.8,3536.6,0.002]
[1762812792867,0.4973,3536.7,3536.6,0.002]
[1762812793741,0.9801,3536.7,3536.6,0.002]
[1762812796194,0.9801,3536.7,3535.1,1.52303455]
[1762812796440,0.4828,3536.6,3535.7,2.82821437]
[1762812796623,0.4828,3536.6,3535.8,2.82819261]
[1762812796790,0.4828,3536.6,3535.8,2.82813662]
[1762812797234,0.4828,3536.6,3535.9,2.82810465]
[1762812797470,0.4828,3536.6,3536.0,2.82805223]
[1762812797738,0.4828,3536.6,3535.3,0.405504]
[1762812797944,0.4828,3536.6,3535.6,2.82837425]
[1762812798136,0.6706,3536.9,3535.7,2.82829425]
[1762812798371,0.6706,3536.9,3536.3,2.82773987]
[1762812798774,0.4828,3536.8,3536.2,2.8278704]
[1762812798976,0.4828,3536.8,3536.3,2.82780073]
[1762812800032,0.4828,3536.8,3536.4,2.82771274]
[1762812800577,0.01,3536.9,3535.8,0.405504]
[1762812800756,0.01,3536.9,3536.4,2.82766835]
[1762812800757,0.4828,3536.8,3536.4,2.82766835]
[1762812801332,0.4828,3536.8,3536.5,2.82763582]
[1762812801525,0.4828,3536.8,3535.5,12.04592183]
[1762812801774,0.4828,3536.8,3536.3,2.82779666]
[1762812801958,0.4828,3536.8,3535.8,2.82821426]
[1762812802271,0.4828,3536.8,3536.3,2.82776621]
[1762812802658,0.4973,3536.4,3536.3,2.82776621]
[1762812802831,0.4973,3536.4,3536.3,2.46147543]
[1762812803028,0.4973,3536.4,3535.8,2.82821426]
[1762812803029,0.4973,3536.4,3535.6,1.52385036]
[1762812803377,0.9801,3536.4,3535.7,0.18878206]
[1762812803533,0.4828,3536.8,3536.3,2.82781438]
[1762812804803,0.4828,3536.8,3535.8,2.82821216]
[1762812805100,0.4828,3536.8,3536.3,2.82776473]
[1762812805448,0.4828,3536.8,3536.4,2.82772091]
[1762812805698,0.4828,3536.8,3535.7,0.18878206]
[1762812805860,0.4828,3536.8,3536.2,2.82782425]
[1762812806065,0.4828,3536.8,3536.2,2.82783114]
[1762812806266,0.95795586,3536.8,3535.7,3.01707444]
[1762812806449,1.269712,3536.9,3535.7,0.18878206]
[1762812806661,0.4897,3536.8,3536.3,2.82779963]
[1762812806860,0.4897,3536.8,3536.4,2.82773349]
[1762812807172,0.4785,3536.5,3536.3,2.82775047]
[1762812807372,0.4785,3536.5,3535.8,6.47208671]
[1762812807569,0.4785,3536.5,3536.3,2.82774623]
[1762812807871,0.4785,3536.5,3536.4,2.82773441]
[1762812808173,0.4785,3536.5,3536.2,2.8278291]
[1762812808387,0.4785,3536.5,3536.3,2.82779656]
[1762812808587,0.4785,3536.5,3535.9,0.66608688]
[1762812808776,0.4785,3536.5,3536.4,2.82773441]
[1762812808985,0.4785,3536.5,3536.4,2.53066403]
[1762812809300,0.4785,3536.5,3536.1,2.82797432]
[1762812809496,0.4785,3536.5,3536.4,2.82773441]
[1762812810968,0.01,3536.9,3536.5,2.82759133]
[1762812811167,0.001,3536.8,3536.5,2.82759133]
[1762812811373,0.4907,3536.8,3536.5,2.82759133]
[1762812811870,0.4785,3536.6,3536.5,2.82759133]
[1762812814902,0.4785,3536.6,3536.5,2.65524098]
[1762812815109,0.001,3536.8,3536.7,2.82749455]
[1762812820214,0.4795,3536.8,3536.7,2.82749455]
[1762812820406,0.87732466,3536.8,3536.1,0.002]
[1762812820607,0.4785,3536.2,3536.1,0.002]
[1762812821039,0.9682,3536.2,3535.5,9.98377527]
[1762812821343,0.9682,3536.2,3535.5,2.82843519]
[1762812821540,0.4897,3536.1,3535.5,2.82843519]
[1762812822747,0.4897,3536.1,3535.4,2.82850731]
[1762812823042,0.4897,3536.1,3535.5,2.82844023]
[1762812823452,0.4897,3536.1,3535.6,2.82836057]
[1762812823823,0.4785,3535.7,3535.6,2.82836057]
[1762812824745,0.1973,3535.9,3535.8,2.82821426]
[1762812825045,0.687,3535.9,3535.6,2.82831575]
[1762812825210,0.4785,3535.7,3535.3,2.8285985]
[1762812825644,0.4785,3535.4,3535.3,2.8285985]
[1762812825942,0.1973,3535.9,3534.8,1.52373973]
[1762812826143,0.1973,3535.9,3535.6,2.82834695]
[1762812826144,0.687,3535.9,3535.6,2.82834695]
[1762812826346,0.4897,3536.2,3534.9,1.8020849]
[1762812826646,0.4435252,3536.5,3534.9,1.8020849]
[1762812826647,0.4785,3535.5,3534.9,1.8020849]
[1762812826844,0.4785,3535.5,3535.4,2.82853425]
[1762812827050,0.4785,3535.5,3535.4,2.47573998]
[1762812827469,0.4785,3535.5,3535.4,2.82853425]
[1762812828861,0.9682,3535.5,3535.4,2.82853425]
[1762812829953,0.9682,3535.5,3535.4,2.83053425]
[1762812830643,0.9682,3535.5,3535.4,0.002]
[1762812832334,0.4785,3535.5,3535.4,0.002]
[1762812832541,0.9682,3535.5,3535.4,0.002]
[1762812833036,0.9682,3535.5,3535.1,2.66926207]
[1762812833539,0.4785,3535.2,3535.0,2.82880323]
[1762812833755,0.4785,3535.1,3535.0,2.82880323]
[1762812834152,0.4897,3535.6,3534.6,2.82912613]
[1762812834466,0.4897,3535.6,3535.2,2.82867674]
[1762812834888,0.4785,3535.3,3535.2,2.82867674]
[1762812835051,0.4897,3535.6,3535.2,2.82867674]
[1762812835592,0.4897,3535.6,3535.4,2.82849427]
[1762812835996,0.1973,3535.9,3534.7,0.56125779]
[1762812836198,0.1973,3535.9,3533.3,2.83019025]
[1762812836199,0.1973,3535.9,3535.2,2.82863759]
[1762812836495,0.6842,3535.9,3535.5,2.82844641]
[1762812836868,0.1973,3535.9,3534.7,0.405504]
[1762812837067,0.1973,3535.9,3535.5,2.82837955]
[1762812837272,0.6842,3535.9,3535.4,2.82849952]
[1762812837659,0.4971,3535.5,3535.4,2.82849952]
[1762812837995,0.4971,3535.5,3534.6,0.405504]
[1762812838157,0.4971,3535.5,3534.7,4.22678418]
[1762812838354,0.4971,3535.5,3535.3,2.82856199]
[1762812838600,0.9607,3535.5,3535.3,2.82856199]
[1762812838900,0.9607,3535.4,3535.3,2.82856199]
[1762812839061,0.4636,3535.7,3535.5,2.67805]
[1762812839395,0.4971,3535.4,3534.7,1.39768978]
[1762812839569,0.4971,3535.4,3534.8,4.08335711]
[1762812839770,0.9607,3535.4,3534.8,1.25434274]
[1762812840081,0.9607,3535.4,3535.0,2.82884943]
[1762812840396,0.9607,3535.4,3534.8,1.25434274]
[1762812840725,0.4971,3534.9,3534.3,9.02373973]
[1762812840858,0.4636,3535.3,3534.6,2.82909477]
[1762812841057,0.4636,3535.3,3534.7,2.82908299]
[1762812841300,2.82782198,3536.3,3534.7,2.82908299]
[1762812841301,4.0892908,3536.4,3534.7,3.64573763]
[1762812841608,0.4636,3535.7,3535.0,2.82883595]
[1762812842178,0.4636,3535.7,3534.8,2.82895119]
[1762812842363,0.4636,3535.7,3535.0,2.82879964]
[1762812842593,0.4636,3535.7,3534.7,4.01031139]
[1762812843166,0.4636,3535.7,3535.0,2.82882462]
[1762812843397,0.4636,3535.7,3534.9,2.8289119]
[1762812843602,0.4636,3536.0,3535.1,2.82874112]
[1762812843805,0.4636,3535.8,3535.0,2.82882224]
[1762812844009,0.4636,3535.8,3535.0,0.96681283]
[1762812844204,0.4971,3535.1,3534.9,2.82891599]
[1762812844507,0.4971,3535.1,3534.5,3.64573763]
[1762812844675,0.4971,3535.1,3534.9,2.82886494]
[1762812844875,0.4971,3535.1,3534.5,3.64573763]
[1762812845210,0.4971,3535.1,3534.5,3.51926918]
[1762812845410,0.6609,3535.9,3534.9,3.64573763]
[1762812845575,0.4636,3535.6,3534.9,3.64573763]
[1762812845918,0.4636,3535.6,3535.0,2.82877987]
[1762812846100,0.4636,3535.6,3535.1,2.82876456]
[1762812846300,0.4636,3535.6,3534.6,3.99766455]
[1762812846492,0.4636,3535.6,3534.7,0.83506959]
[1762812846692,0.4636,3535.6,3534.9,2.82890783]
[1762812847092,0.4636,3535.6,3534.6,0.35192692]
[1762812847428,0.4971,3535.0,3534.3,1.52373973]
[1762812847609,0.4971,3535.0,3534.8,2.82894475]
[1762812847979,0.4971,3535.0,3534.9,2.82893434]
[1762812850095,0.4971,3535.0,3534.7,0.002]
[1762812850506,0.4971,3534.8,3534.7,0.002]
[1762812851008,0.9607,3534.8,3534.7,0.002]
[1762812851309,0.9607,3534.8,3534.5,2.62550017]
[1762812852004,0.9607,3534.8,3534.6,2.82916911]
[1762812852526,0.9607,3534.8,3534.7,2.8290944]
[1762812853949,0.9607,3534.8,3534.4,17.32931476]
[1762812854246,0.9607,3534.8,3534.7,2.8290944]
[1762812854557,0.9607,3534.8,3534.4,14.5]
[1762812854716,0.9607,3534.8,3534.7,2.8290944]
[1762812854907,0.9607,3534.8,3534.5,2.82925449]
[1762812855255,3.4616466,3535.3,3534.5,4.71455391]
[1762812855545,3.4616466,3535.3,3535.1,2.82873107]
[1762812855851,0.9607,3535.2,3534.9,2.82892399]
[1762812856053,2.9980466,3535.3,3535.2,2.82869427]
[1762812856551,3.4951466,3535.3,3535.2,2.82869427]
[1762812856850,3.9587466,3535.3,3535.2,2.82869427]
[1762812857238,3.9587466,3535.3,3535.2,2.68036631]
[1762812857645,2.9980466,3535.3,3535.2,2.68036631]
[1762812858152,3.4951466,3535.3,3535.2,2.68036631]
[1762812859226,3.4951466,3535.3,3535.1,2.82871288]
[1762812859414,3.4951466,3535.3,3534.6,1.52373973]
[1762812859614,3.4951466,3535.3,3535.2,2.82869427]
[1762812862225,3.4951466,3535.3,3535.1,2.82874404]
[1762812862564,3.4951466,3535.3,3534.7,3.59757249]
[1762812862746,3.4951466,3535.3,3535.0,2.82885431]
[1762812863266,3.4951466,3535.3,3535.2,2.82869427]
[1762812864070,3.9587466,3535.3,3535.2,2.82869427]
[1762812864370,3.4951466,3535.3,3535.2,2.82869427]
[1762812864731,3.4951466,3535.3,3535.1,2.82874113]
[1762812865130,0.4971,3535.2,3535.1,2.82874113]
[1762812865331,0.9933,3535.2,3535.1,2.82874113]
[1762812865769,0.4971,3535.2,3535.1,2.82874113]
[1762812866066,2.9980466,3535.3,3535.2,2.82869427]
[1762812866245,3.9689466,3535.3,3534.9,2.82885655]
[1762812866443,0.4747,3535.2,3534.9,2.82885655]
[1762812866640,0.9709,3535.2,3535.1,2.82877429]
[1762812866858,2.9980466,3535.3,3535.2,2.82869427]
[1762812867230,3.4727466,3535.3,3535.2,2.82869427]
[1762812867433,2.9990466,3535.3,3535.2,2.82869427]
[1762812867635,2.9990466,3535.3,3535.2,0.56594735]
[1762812867867,0.16935233,3535.2,3535.1,0.002]
[1762812868042,0.16935233,3535.2,3535.1,2.83077429]
[1762812869382,0.16935233,3535.2,3535.1,2.48959727]
[1762812870857,0.16935233,3535.2,3534.9,2.82893434]
[1762812871191,0.4747,3535.0,3534.5,1.52373973]
[1762812871392,0.4747,3534.9,3534.8,2.82897068]
[1762812873294,0.4747,3534.9,3534.8,2.82901437]
[1762812874056,0.9709,3534.9,3534.5,1.52373973]
[1762812874295,0.9709,3534.9,3534.8,2.82901437]
[1762812874520,0.4747,3534.6,3534.4,1.52373973]
[1762812874659,0.4406,3534.5,3533.9,7.5]
[1762812874981,0.4962,3534.8,3534.3,2.82934864]
[1762812875191,0.4962,3535.0,3534.5,2.82920031]
[1762812875358,0.4962,3535.0,3534.6,2.67795753]
[1762812875673,0.4962,3535.0,3534.1,0.1872]
[1762812875877,0.4962,3535.0,3534.2,1.50415]
[1762812876082,0.16935233,3535.2,3535.0,2.82878216]
[1762812876483,0.16935233,3535.2,3535.1,2.82877429]
[1762812876680,0.64405233,3535.2,3535.1,2.82877429]
[1762812877695,0.16935233,3535.2,3535.1,2.82877429]
[1762812877857,0.16935233,3535.2,3535.1,3.7488433]
[1762812879994,0.16935233,3535.2,3535.1,4.1031433]
[1762812880525,0.16935233,3535.2,3535.1,5.39114304]
[1762812880809,0.16935233,3535.2,3535.1,5.0085553]
[1762812881379,0.16935233,3535.2,3535.1,19.5085553]
[1762812881718,0.16935233,3535.2,3535.1,19.65320759]
[1762812884908,0.16935233,3535.2,3535.1,20.05871159]
[1762812885428,0.16935233,3535.2,3535.1,27.55871159]
[1762812885831,0.17035233,3535.2,3535.1,27.55871159]
[1762812886387,0.001,3535.2,3535.1,27.38935926]
[1762812887595,0.001,3535.2,3535.1,27.14456447]
[1762812892232,0.001,3535.2,3535.1,30.69904042]
[1762812893634,0.001,3535.2,3535.1,31.32283525]
[1762812894304,1e-08,3535.6,3535.5,3.18275424]
[1762812894503,1e-08,3535.6,3535.5,9.15432338]
[1762812894951,1e-08,3535.6,3535.5,23.65432338]
[1762812895233,1e-08,3535.6,3535.5,31.15432338]
[1762812896740,0.93010001,3535.6,3535.5,26.89124743]
[1762812896921,0.93010001,3535.6,3535.5,26.44246624]
[1762812896922,1e-08,3535.6,3535.5,26.44246624]
[1762812897122,1e-08,3535.6,3535.5,26.08816624]
[1762812897437,0.46150001,3535.6,3535.5,18.58816624]
[1762812897637,0.46150001,3535.6,3535.5,21.33500394]
[1762812897838,1e-08,3535.6,3535.5,22.09480794]
[1762812899329,1e-08,3535.6,3535.5,29.18930394]
[1762812899562,1e-08,3535.6,3535.5,28.64147383]
[1762812899762,1e-08,3535.6,3535.5,32.95575378]
[1762812899957,1e-08,3535.6,3535.5,33.31005378]
[1762812900341,1e-08,3535.6,3535.5,28.64147383]
[1762812900527,0.94130001,3535.6,3535.5,25.89463613]
[1762812901231,0.94130001,3535.6,3535.5,18.39463613]
[1762812901427,1e-08,3535.6,3535.5,18.39463613]
[1762812901630,0.94130001,3535.6,3535.5,18.39463613]
[1762812901861,0.47880001,3535.6,3535.5,18.39463613]
[1762812902571,0.94130001,3535.6,3535.5,18.39463613]
[1762812903065,0.94130001,3535.6,3535.5,4.08816624]
[1762812903283,0.94130001,3535.6,3535.3,1.259712]
[1762812903472,1e-08,3535.6,3535.5,4.84797024]
[1762812903634,1e-08,3535.6,3535.5,7.42389784]
[1762812903833,1e-08,3535.6,3535.5,5.20227024]
[1762812904046,1e-08,3535.6,3535.5,19.70227024]
[1762812904232,1e-08,3535.6,3535.5,26.44246624]
[1762812904644,0.94130001,3535.6,3535.5,24.82845424]
[1762812904841,0.94130001,3535.6,3535.5,10.32845424]
[1762812905028,0.47880001,3535.6,3535.5,10.32845424]
[1762812905260,0.47880001,3535.6,3535.5,2.82845424]
[1762812905668,0.4788,3535.4,3535.2,1.259712]
[1762812905874,1e-08,3535.6,3535.5,3.18275424]
[1762812906068,1e-08,3535.6,3535.5,4.44246624]
[1762812906231,1e-08,3535.6,3535.5,5.20227024]
[1762812906568,1e-08,3535.6,3535.5,7.21102053]
[1762812906770,1e-08,3535.6,3535.5,21.71102053]
[1762812907538,28.78308685,3535.6,3535.5,21.71102053]